bitfinex/quotes_ETHUSD_20260108
["timestamp","ask_amount","ask_price","bid_price","bid_amount"]
[1767901653869,0.99101403,3117.5,3116.5,0.98354406]
[1767901654072,0.99101403,3117.5,3116.6,0.842]
[1767901654469,0.99101403,3117.5,3116.6,4.05055007]
[1767901654675,0.99101403,3117.5,3116.6,5.03411767]
[1767901654876,0.99101403,3117.5,3116.7,3.20851326]
[1767901655489,4.19871944,3117.5,3116.7,4.19205732]
[1767901656408,0.99101403,3117.4,3116.6,0.842]
[1767901656706,0.99101403,3117.4,3116.6,5.03414844]
[1767901657006,3.20757951,3117.7,3117.0,0.98354406]
[1767901657238,3.20757951,3117.7,3117.1,1.82554406]
[1767901657689,4.19844576,3117.8,3117.1,1.82554406]
[1767901657889,0.74058043,3117.7,3117.1,1.82554406]
[1767901659509,0.001,3118.1,3117.4,0.98354406]
[1767901659510,3.20813357,3118.1,3117.4,0.98354406]
[1767901663314,4.1991476,3118.1,3117.4,0.98354406]
[1767901663887,7.40628117,3118.1,3117.4,0.98354406]
[1767901664087,0.99101403,3118.0,3117.2,0.98354406]
[1767901664402,3.20728695,3117.9,3117.2,0.98354406]
[1767901665201,7.40558793,3117.9,3117.3,0.842]
[1767901665403,0.99101403,3117.8,3117.3,0.842]
[1767901666425,3.20743402,3117.8,3117.3,0.842]
[1767901667096,3.20735559,3117.9,3117.3,0.842]
[1767901667296,4.1982526,3118.0,3117.3,1.82554406]
[1767901668718,4.1982526,3118.0,3117.4,0.002]
[1767901669214,3.20813042,3118.1,3117.4,0.98554406]
[1767901670218,4.19914445,3118.1,3117.4,0.98554406]
[1767901670711,7.40627487,3118.1,3117.4,0.87511476]
[1767901670902,8.14688812,3118.1,3117.3,0.842]
[1767901671794,0.99101403,3118.0,3117.3,0.842]
[1767901673910,3.20728695,3117.9,3117.3,0.842]
[1767901674291,4.19823998,3118.0,3117.3,1.82554406]
[1767901674492,4.19823998,3118.0,3117.4,0.842]
[1767901674898,3.20722595,3118.0,3117.4,0.842]
[1767901675119,3.20722595,3118.0,3117.4,1.82554406]
[1767901675718,3.20722595,3118.0,3117.4,0.842]
[1767901675920,4.02192188,3118.0,3117.4,0.842]
[1767901676101,4.02192188,3118.0,3117.4,1.82554406]
[1767901679331,0.001,3118.1,3117.7,3.86789937]
[1767901679696,4.19751686,3118.7,3117.9,3.86789937]
[1767901679897,3.20660317,3118.6,3118.0,0.842]
[1767901680209,4.19752946,3118.7,3118.0,1.82554406]
[1767901681122,0.99101403,3118.6,3118.0,0.842]
[1767901681306,0.001,3118.4,3118.0,0.842]
[1767901681623,0.001,3118.4,3117.8,0.98354406]
[1767901681807,0.001,3118.4,3117.9,0.842]
[1767901682892,0.001,3118.4,3118.0,0.97464205]
[1767901683100,0.001,3118.4,3117.9,0.842]
[1767901687813,0.98838787,3118.1,3117.2,0.95321862]
[1767901688013,4.19557196,3118.0,3117.5,0.842]
[1767901688214,0.98838787,3117.9,3117.5,0.842]
[1767901688530,0.98838787,3117.7,3117.1,0.842]
[1767901690105,3.20727602,3118.0,3117.4,0.95321862]
[1767901690631,0.98838787,3118.3,3117.6,3.83757393]
[1767901690835,4.19616773,3118.4,3117.7,0.95321862]
[1767901691007,0.98838787,3118.3,3117.7,0.842]
[1767901692341,4.19533493,3118.3,3117.7,0.842]
[1767901693131,7.40228199,3118.3,3117.7,0.842]
[1767901693334,0.98838787,3118.2,3118.0,0.002]
[1767901693537,3.87274318,3118.2,3118.0,0.002]
[1767901693838,0.98938787,3118.1,3118.0,0.002]
[1767901694535,4.1964691,3118.1,3118.0,0.002]
[1767901694835,0.98938787,3118.1,3118.0,0.002]
[1767901695636,0.01294442,3117.9,3117.6,0.002]
[1767901696831,0.01294442,3117.9,3117.6,0.95521862]
[1767901697006,0.01294442,3117.9,3117.6,0.002]
[1767901697211,0.01294442,3117.9,3117.7,0.842]
[1767901703938,0.01294442,3117.9,3117.8,0.95321862]
[1767901704138,3.20779867,3118.4,3117.8,0.95321862]
[1767901705046,0.001,3118.4,3117.8,0.95321862]
[1767901705937,0.001,3118.4,3117.9,0.95321862]
[1767901707742,0.001,3118.4,3117.7,2.29570922]
[1767901707940,3.2077727,3118.4,3117.7,2.29570922]
[1767901708333,3.2077727,3118.4,3117.1,0.95321862]
[1767901708334,3.87274318,3117.8,3117.1,0.95321862]
[1767901708538,6.4145454,3118.4,3117.0,0.002]
[1767901708539,3.87274318,3117.6,3117.0,0.002]
[1767901708726,0.98838787,3117.6,3117.1,0.842]
[1767901708921,2.88435531,3117.8,3117.1,0.842]
[1767901708922,0.98838787,3117.8,3117.1,0.842]
[1767901710752,0.98838787,3117.6,3117.0,0.002]
[1767901710938,0.98838787,3117.6,3117.2,0.842]
[1767901711134,0.98838787,3117.6,3117.0,0.002]
[1767901711350,0.98838787,3117.6,3117.2,0.842]
[1767901714030,4.19603702,3117.6,3117.2,0.842]
[1767901714347,4.19603702,3117.6,3117.1,0.842]
[1767901714927,3.2074392,3117.8,3117.1,1.83251359]
[1767901715141,4.14461532,3117.8,3117.1,1.83251359]
[1767901717734,4.14461532,3117.8,3117.2,0.842]
[1767901718646,3.2074392,3117.8,3117.2,1.83251359]
[1767901719355,7.35205452,3117.8,3117.2,0.842]
[1767901719562,0.93717612,3117.7,3117.0,0.844]
[1767901719728,0.93717612,3117.5,3117.0,0.002]
[1767901719928,0.93717612,3117.5,3117.0,0.844]
[1767901721067,0.93717612,3117.5,3117.4,0.002]
[1767901721383,1.35165329,3117.5,3117.0,0.844]
[1767901721553,0.93717612,3117.5,3117.0,0.844]
[1767901723773,0.93517612,3117.5,3117.0,0.844]
[1767901724677,0.93817612,3118.1,3117.1,0.99051359]
[1767901724866,0.93717612,3117.9,3117.1,0.99051359]
[1767901725185,0.41443602,3117.8,3117.1,0.99051359]
[1767901726090,3.62191886,3117.8,3117.1,0.99051359]
[1767901728693,0.41443602,3117.8,3117.1,0.99051359]
[1767901728874,3.20730874,3117.9,3117.1,0.99051359]
[1767901729758,4.14530235,3118.1,3117.3,0.99051359]
[1767901730193,0.001,3118.1,3117.3,0.99051359]
[1767901730872,3.2080881,3118.1,3117.3,0.99051359]
[1767901732200,0.001,3118.1,3117.4,4.19831496]
[1767901732362,0.93717612,3118.0,3117.5,4.14547791]
[1767901732562,0.001,3118.1,3117.6,0.99051359]
[1767901736582,0.001,3118.1,3117.6,4.19810906]
[1767901736783,0.001,3118.1,3117.7,0.99051359]
[1767901737987,0.93817612,3118.1,3117.5,1.2618315]
[1767901738190,0.93817612,3118.1,3117.5,0.842]
[1767901738499,3.20809762,3118.1,3117.5,0.842]
[1767901738698,3.20809762,3118.1,3117.5,1.83251359]
[1767901739291,0.001,3118.1,3117.5,1.83251359]
[1767901740201,3.20809325,3118.1,3117.5,1.83251359]
[1767901740889,0.001,3118.1,3117.6,0.99051359]
[1767901741703,0.001,3118.4,3118.1,0.99051359]
[1767901741901,0.001,3118.4,3118.2,0.842]
[1767901742401,4.11848397,3119.0,3118.3,0.96000459]
[1767901742704,0.91230736,3118.9,3118.2,0.842]
[1767901742871,3.20636142,3118.8,3118.2,0.842]
[1767901743075,0.91230736,3118.7,3117.9,4.16728633]
[1767901743271,0.91230736,3118.7,3118.3,0.842]
[1767901745026,4.11856597,3118.9,3118.3,0.842]
[1767901745512,8.09848454,3118.9,3118.3,0.842]
[1767901746216,0.001,3118.4,3118.3,0.842]
[1767901748013,0.001,3118.4,3118.0,0.94107494]
[1767901748179,3.85680561,3118.3,3117.4,0.94307494]
[1767901748383,0.9731592,3118.2,3117.5,0.842]
[1767901748927,0.9731592,3118.2,3117.6,0.842]
[1767901749095,0.9731592,3118.2,3117.4,0.002]
[1767901749096,0.9731592,3118.0,3117.4,0.002]
[1767901749416,0.9731592,3118.0,3117.1,0.842]
[1767901749590,0.9731592,3118.0,3117.2,0.94107494]
[1767901750195,3.20728695,3117.9,3117.2,0.94107494]
[1767901750394,4.18044615,3117.9,3117.2,0.94107494]
[1767901750597,5.20757605,3117.9,3117.2,0.94107494]
[1767901751720,2.0002891,3117.9,3117.2,4.14906408]
[1767901752019,3.20721475,3118.0,3117.3,0.94107494]
[1767901753317,3.2071328,3118.1,3117.4,0.94107494]
[1767901754515,4.180292,3118.1,3117.4,0.94107494]
[1767901756019,4.180292,3118.1,3117.2,4.14907727]
[1767901756911,4.180292,3118.1,3117.3,0.94107494]
[1767901757113,4.95758988,3118.1,3117.3,0.94107494]
[1767901758314,0.9731592,3118.0,3117.3,0.94107494]
[1767901758627,0.9731592,3118.0,3117.7,0.002]
[1767901759730,3.85680561,3117.9,3116.9,0.94107494]
[1767901759928,0.9731592,3117.8,3117.1,0.842]
[1767901760110,0.9731592,3117.7,3117.1,0.842]
[1767901762630,0.9731592,3117.7,3117.1,4.05010259]
[1767901763037,0.9731592,3117.7,3117.1,0.842]
[1767901764132,4.18067149,3117.7,3117.1,0.842]
[1767901767221,4.91947928,3117.7,3117.1,0.842]
[1767901771414,4.91947928,3117.7,3117.4,0.002]
[1767901772115,8.12699157,3117.7,3117.4,0.002]
[1767901772441,0.94385854,3117.5,3116.5,3.20867404]
[1767901772612,0.94385854,3117.5,3116.8,0.842]
[1767901772813,0.94385854,3117.3,3116.8,0.842]
[1767901773744,3.20800718,3117.2,3116.8,0.842]
[1767901773926,4.15186572,3117.2,3116.8,0.842]
[1767901775437,4.15186572,3117.2,3116.4,0.002]
[1767901775438,0.94385854,3117.1,3116.4,0.002]
[1767901775630,0.94385854,3117.1,3116.4,0.844]
[1767901775841,0.94385854,3116.9,3116.4,0.844]
[1767901776147,4.15217811,3116.9,3116.4,0.844]
[1767901776846,0.94385854,3116.8,3116.3,0.002]
[1767901777049,0.94385854,3116.6,3116.2,0.844]
[1767901777220,0.38275049,3116.5,3116.2,0.844]
[1767901777420,0.94385854,3116.6,3116.2,0.844]
[1767901778520,3.6196337,3117.0,3116.2,0.844]
[1767901778521,0.94385854,3116.8,3116.2,0.844]
[1767901780348,3.20835074,3116.9,3116.2,0.844]
[1767901780349,4.88810351,3117.0,3116.3,0.93654926]
[1767901780649,3.20825768,3117.0,3116.3,0.93654926]
[1767901783832,0.001,3116.7,3116.3,0.93654926]
[1767901784831,0.001,3116.7,3116.4,0.93654926]
[1767901785774,0.001,3116.7,3116.4,3.82223471]
[1767901785958,0.001,3116.7,3116.6,0.93654926]
[1767901786962,0.001,3116.7,3116.5,0.70311646]
[1767901787532,0.001,3116.7,3116.5,1.63966572]
[1767901788842,0.001,3116.7,3116.5,4.84837336]
[1767901789043,0.001,3116.7,3116.6,0.93654926]
[1767901789244,0.001,3116.7,3116.5,0.70311646]
[1767901790138,0.001,3116.7,3116.4,0.93654926]
[1767901791062,0.001,3116.7,3116.5,0.93654926]
[1767901793447,0.001,3116.7,3116.5,4.14524856]
[1767901793653,0.001,3116.7,3116.6,0.93654926]
[1767901795062,0.94385854,3117.8,3116.7,4.14507109]
[1767901795237,0.94385854,3117.6,3116.8,3.72768545]
[1767901797268,0.94385854,3117.5,3116.9,3.20831595]
[1767901797464,4.15138873,3117.7,3117.0,2.88568545]
[1767901798174,4.15138873,3117.7,3116.9,4.14486521]
[1767901798391,4.15138873,3117.7,3116.9,5.25296074]
[1767901799568,0.94385854,3117.7,3116.9,5.25296074]
[1767901799768,0.94385854,3117.7,3117.0,0.93654926]
[1767901799955,0.94385854,3117.9,3117.1,0.93654926]
[1767901801343,3.20738982,3117.8,3117.1,0.93654926]
[1767901801544,6.09256099,3118.3,3117.4,3.82223471]
[1767901801545,4.15099148,3118.1,3117.4,3.82223471]
[1767901801759,4.15099148,3118.1,3117.4,4.66423471]
[1767901801948,4.15099148,3118.1,3117.4,1.77854926]
[1767901802136,4.15099148,3118.1,3117.4,0.842]
[1767901802341,0.94385854,3118.0,3117.4,0.842]
[1767901803356,3.20713294,3118.1,3117.4,0.842]
[1767901803773,3.20713294,3118.1,3117.4,4.04977924]
[1767901803956,4.17742694,3118.1,3117.4,4.04977924]
[1767901804351,0.970294,3118.1,3117.4,4.97117557]
[1767901804552,0.970294,3118.1,3117.4,8.17897694]
[1767901804872,0.001,3118.4,3117.8,0.92139633]
[1767901805048,0.971294,3118.4,3117.6,0.92139633]
[1767901805245,0.971294,3118.4,3117.4,8.36405171]
[1767901805246,0.970294,3118.1,3117.4,1.9484711]
[1767901805458,0.970294,3118.1,3117.4,4.04980118]
[1767901806457,3.20708236,3118.1,3117.4,0.842]
[1767901806661,0.94888841,3118.0,3117.5,0.842]
[1767901807404,0.94888841,3118.3,3117.6,2.88568545]
[1767901807678,0.001,3118.4,3117.9,2.88568545]
[1767901809056,0.001,3118.4,3118.0,0.842]
[1767901809971,0.001,3118.4,3118.1,2.88568545]
[1767901810374,0.94888841,3118.9,3118.1,3.87335647]
[1767901810574,1.36439394,3118.9,3118.1,3.87335647]
[1767901810875,4.57065503,3118.9,3118.1,3.87335647]
[1767901812176,4.57065503,3118.9,3118.1,7.08042697]
[1767901813154,4.57065503,3118.9,3118.1,3.87335647]
[1767901813478,7.77691612,3118.9,3118.1,3.87335647]
[1767901814374,0.94888841,3118.7,3118.0,4.04918239]
[1767901814579,0.94888841,3118.7,3118.0,5.16217398]
[1767901815564,0.94888841,3118.7,3118.0,5.16217257]
[1767901817093,0.94888841,3118.7,3117.5,3.20763784]
[1767901817094,0.94888841,3118.1,3117.3,0.98767102]
[1767901817256,0.94888841,3118.1,3117.6,0.842]
[1767901818264,0.94888841,3118.5,3117.7,3.20748357]
[1767901818675,0.94888841,3118.5,3117.7,6.09316902]
[1767901818877,0.94888841,3118.5,3117.8,3.2073671]
[1767901819166,4.15564954,3118.5,3117.7,0.98767102]
[1767901819478,4.15564954,3118.5,3117.7,4.1951582]
[1767901819678,0.94888841,3118.5,3117.7,5.30821072]
[1767901820072,4.15558978,3118.5,3117.7,5.30821072]
[1767901820280,0.94888841,3118.4,3117.7,5.30821072]
[1767901821198,4.1555163,3118.6,3117.7,8.51570342]
[1767901821402,0.94888841,3118.5,3117.8,1.22433889]
[1767901821696,0.001,3118.2,3117.8,1.22433889]
[1767901823401,0.001,3118.2,3117.8,4.43166671]
[1767901823803,0.94888841,3119.7,3118.1,0.98767102]
[1767901823995,0.94888841,3119.7,3117.8,10.84644635]
[1767901823996,0.94888841,3119.5,3118.7,2.88568545]
[1767901824196,0.94888841,3119.4,3118.3,3.87335647]
[1767901824501,0.94888841,3119.4,3118.2,1.22933565]
[1767901824502,0.94888841,3119.4,3118.5,3.87335647]
[1767901825523,0.94888841,3119.2,3118.5,3.87335647]
[1767901825678,0.94888841,3119.2,3118.2,4.43622175]
[1767901825679,0.94888841,3119.2,3118.3,0.98767102]
[1767901826020,0.94888841,3119.2,3118.4,0.22170067]
[1767901827376,4.15491773,3119.2,3118.4,0.22170067]
[1767901827571,4.15491773,3119.2,3118.4,4.41614048]
[1767901827775,0.94888841,3119.6,3118.5,3.87335647]
[1767901827999,0.94888841,3119.5,3118.6,0.98767102]
[1767901828200,0.94888841,3119.5,3118.6,1.90481347]
[1767901828402,0.94888841,3119.5,3118.4,7.30182593]
[1767901829296,0.94888841,3119.3,3118.4,7.30182593]
[1767901829492,0.94888841,3119.3,3118.5,0.98767102]
[1767901829697,0.94888841,3119.3,3118.4,9.52092761]
[1767901829698,0.94888841,3120.0,3118.9,3.87335647]
[1767901829976,0.94888841,3119.8,3119.0,0.98767102]
[1767901830114,0.94888841,3119.6,3118.8,0.842]
[1767901831427,0.94888841,3119.4,3118.8,0.842]
[1767901833494,3.26914284,3119.7,3118.8,0.842]
[1767901833495,0.94109573,3119.3,3118.8,0.842]
[1767901834127,4.14671384,3119.6,3118.8,0.842]
[1767901834327,0.94109573,3119.5,3118.8,0.842]
[1767901834922,0.94209573,3119.3,3118.8,0.842]
[1767901835990,0.001,3119.3,3118.8,0.842]
[1767901836421,4.14794416,3119.3,3118.8,0.842]
[1767901836887,4.14794416,3119.3,3118.2,3.59422303]
[1767901836888,0.94109573,3118.8,3117.8,0.91878361]
[1767901837115,2.88568545,3118.3,3117.8,0.002]
[1767901837321,0.94109573,3118.4,3117.8,0.002]
[1767901837895,4.14790789,3118.4,3117.8,0.002]
[1767901838091,4.2094593,3118.7,3117.8,0.91878361]
[1767901838491,4.14770091,3118.6,3117.8,0.91878361]
[1767901838715,0.4530379,3118.5,3117.8,0.91878361]
[1767901839225,1.39413363,3118.5,3117.8,0.91878361]
[1767901839728,0.4530379,3118.5,3117.8,0.91878361]
[1767901840114,0.94109573,3118.7,3117.9,0.91678361]
[1767901840115,4.14756593,3118.7,3117.9,0.91678361]
[1767901840411,3.20633703,3118.9,3117.9,0.91678361]
[1767901840412,3.20636142,3118.8,3117.9,0.91678361]
[1767901840616,3.20636142,3118.8,3118.1,0.91678361]
[1767901841725,3.20625861,3118.9,3118.2,0.91678361]
[1767901842031,0.41473543,3118.8,3118.2,0.91678361]
[1767901842233,0.001,3119.3,3118.2,0.91678361]
[1767901842234,0.94109573,3119.2,3118.2,0.91678361]
[1767901842397,4.14704597,3119.2,3118.2,0.91678361]
[1767901842925,3.20595024,3119.2,3118.2,0.91678361]
[1767901843129,0.001,3119.3,3118.4,0.91678361]
[1767901843340,0.001,3119.3,3118.6,0.91678361]
[1767901843490,3.20684778,3119.3,3118.6,0.91678361]
[1767901843695,0.001,3119.3,3118.6,0.91678361]
[1767901843998,0.001,3119.3,3118.7,0.91678361]
[1767901848040,0.001,3119.0,3118.7,0.91678361]
[1767901848220,0.001,3119.0,3118.7,1.45131517]
[1767901848937,0.001,3119.0,3118.8,0.91678361]
[1767901849641,0.001,3119.0,3118.6,0.91678361]
[1767901851126,0.001,3119.0,3118.7,0.91678361]
[1767901854461,0.94109573,3119.7,3118.8,0.91678361]
[1767901854653,3.20562807,3119.6,3118.9,0.91678361]
[1767901854970,0.94109573,3119.5,3118.8,0.41233024]
[1767901855541,4.14684042,3119.4,3118.7,0.91678361]
[1767901855965,0.94109573,3119.3,3118.5,2.13868536]
[1767901856268,0.94109573,3119.3,3118.3,0.91678361]
[1767901856472,0.94109573,3119.1,3118.2,3.20694792]
[1767901856675,0.94109573,3119.1,3118.4,0.841]
[1767901857788,0.94109573,3119.0,3118.4,0.841]
[1767901857989,0.94109573,3119.0,3118.4,4.0477458]
[1767901858774,0.94109573,3119.0,3118.4,0.841]
[1767901860039,0.94309573,3119.0,3118.4,0.841]
[1767901860770,4.14925676,3119.0,3118.4,0.841]
[1767901862674,0.94309573,3119.0,3118.4,4.04774526]
[1767901862849,0.002,3119.0,3118.5,0.91280805]
[1767901863255,0.002,3119.0,3118.4,4.04774526]
[1767901864372,0.002,3119.0,3118.4,4.96055331]
[1767901864547,0.002,3119.0,3118.4,5.7773059]
[1767901864868,0.002,3119.0,3118.4,2.57056064]
[1767901865274,0.002,3119.0,3118.4,1.75380805]
[1767901865651,0.002,3119.0,3118.5,0.9054744]
[1767901866678,0.002,3119.0,3118.5,4.11213541]
[1767901866873,0.002,3119.0,3118.3,0.9054744]
[1767901867076,0.94432253,3119.0,3118.4,0.841]
[1767901867377,0.94232253,3118.9,3118.4,0.841]
[1767901868468,0.94232253,3118.9,3118.1,0.9074744]
[1767901868670,3.20646423,3118.7,3118.1,0.843]
[1767901868987,4.14872493,3118.8,3118.1,0.843]
[1767901869776,4.8844155,3118.8,3118.1,0.843]
[1767901871065,0.94232253,3118.7,3118.1,0.843]
[1767901872078,3.94209297,3118.8,3117.8,0.002]
[1767901872079,0.94232253,3118.5,3117.8,0.002]
[1767901872257,0.94232253,3118.2,3117.6,0.841]
[1767901874351,0.94232253,3118.4,3117.6,4.95406801]
[1767901874557,0.94232253,3118.4,3117.7,0.9054744]
[1767901875164,1.35721325,3118.4,3117.7,0.9054744]
[1767901875363,1.35721325,3118.4,3117.6,4.04859361]
[1767901875364,0.94232253,3118.3,3117.6,0.841]
[1767901875955,0.41489072,3118.4,3117.4,0.841]
[1767901875956,0.94232253,3117.8,3117.4,0.841]
[1767901876487,0.94232253,3117.8,3117.4,4.04874382]
[1767901876789,0.94232253,3118.1,3117.4,4.04874382]
[1767901877086,4.14939835,3118.2,3117.4,4.95421822]
[1767901877301,4.92650795,3118.2,3117.4,4.95421822]
[1767901877588,4.92650795,3118.2,3117.5,0.9054744]
[1767901877889,3.98418542,3118.2,3117.5,0.9054744]
[1767901878479,8.13358377,3118.2,3117.5,0.9054744]
[1767901878680,0.94232253,3118.1,3117.4,0.841]
[1767901878989,1.75566274,3118.1,3117.4,0.841]
[1767901879286,1.75566274,3118.1,3117.4,4.04876183]
[1767901879787,1.75566274,3118.1,3117.4,4.95423623]
[1767901880087,1.75566274,3118.1,3117.4,1.7464744]
[1767901881978,0.94232253,3118.0,3117.4,0.841]
[1767901882180,1.75930008,3118.0,3117.4,0.841]
[1767901882561,1.75930008,3118.0,3117.4,4.0487583]
[1767901883362,1.75930008,3118.0,3117.4,0.841]
[1767901884387,1.75930008,3118.0,3117.4,4.04878822]
[1767901885086,1.35721325,3118.4,3117.5,0.9054744]
[1767901885383,0.94232253,3117.8,3117.0,1.7474744]
[1767901885584,0.94232253,3117.8,3117.0,3.20816313]
[1767901885787,0.94232253,3117.8,3117.1,0.842]
[1767901886174,0.94232253,3117.7,3117.1,0.842]
[1767901886786,0.94232253,3117.6,3117.4,0.002]
[1767901886962,0.94232253,3117.6,3117.1,0.842]
[1767901887365,0.94232253,3117.6,3105.8,0.071]
[1767901887366,0.94232253,3117.5,3116.6,0.9054744]
[1767901887565,0.94232253,3117.5,3116.7,3.20847278]
[1767901887766,1.32477817,3117.4,3116.7,3.20847278]
[1767901887962,0.94232253,3117.4,3116.7,3.20847278]
[1767901888393,0.94232253,3117.4,3116.8,3.20839257]
[1767901888772,0.94232253,3117.4,3116.8,3.20834638]
[1767901889092,0.94232253,3117.4,3116.7,4.11394432]
[1767901889892,0.94232253,3117.6,3116.8,0.9054744]
[1767901890106,1.39555464,3117.6,3116.8,0.9054744]
[1767901893827,0.94232253,3117.7,3116.9,4.11379035]
[1767901894197,0.98188822,3117.6,3116.9,4.11379035]
[1767901894615,4.18907231,3118.0,3117.0,0.91829852]
[1767901894835,2.00972936,3117.9,3117.0,0.91829852]
[1767901895126,0.98188822,3117.8,3117.0,0.91829852]
[1767901895484,1.02784114,3117.9,3117.2,0.91829852]
[1767901895827,0.98188822,3117.8,3117.1,0.842]
[1767901896997,4.18929386,3117.8,3117.1,0.842]
[1767901897223,4.51059821,3117.8,3117.1,0.842]
[1767901897394,0.98188822,3117.7,3117.1,0.842]
[1767901899622,0.98188822,3117.7,3117.4,0.002]
[1767901900720,0.32130435,3117.8,3117.4,0.002]
[1767901901499,4.51063104,3117.8,3117.4,0.002]
[1767901902324,0.59021178,3117.7,3117.4,0.002]
[1767901902824,0.98188822,3117.5,3117.0,0.844]
[1767901903807,0.98188822,3117.5,3117.0,4.05220141]
[1767901904009,0.98188822,3117.5,3117.0,0.844]
[1767901906505,4.77964055,3117.7,3117.0,4.05220646]
[1767901907338,1.5721,3117.7,3117.0,4.05220646]
[1767901908626,0.59021178,3117.7,3117.1,0.91829852]
[1767901910142,3.528703,3117.8,3117.1,4.12633616]
[1767901910143,0.32130435,3117.8,3117.1,4.12633616]
[1767901910434,4.1892074,3117.9,3117.1,0.91829852]
[1767901910929,0.98188822,3117.8,3117.0,1.76229852]
[1767901911437,0.98188822,3117.8,3117.1,3.20807487]
[1767901912738,0.98188822,3117.8,3117.4,0.002]
[1767901913734,4.18928533,3117.8,3117.4,0.002]
[1767901913903,5.21729915,3117.8,3117.4,0.002]
[1767901914109,2.00990204,3117.8,3117.4,0.002]
[1767901914644,0.98188822,3118.0,3117.4,0.002]
[1767901914803,0.98188822,3118.2,3117.4,0.92029852]
[1767901915009,3.20687554,3118.3,3117.6,0.91829852]
[1767901915223,4.18876376,3118.3,3117.6,0.91829852]
[1767901915447,4.96981313,3118.3,3117.6,0.91829852]
[1767901915647,8.17668867,3118.3,3117.6,0.91829852]
[1767901916150,1.76293759,3118.3,3117.6,0.91829852]
[1767901916935,3.20697838,3118.2,3117.5,0.842]
[1767901918033,0.98188822,3118.1,3117.5,0.842]
[1767901919822,0.98188822,3117.7,3117.4,0.002]
[1767901923455,2.88365538,3117.8,3117.4,0.002]
[1767901923750,0.95069516,3117.8,3117.4,0.002]
[1767901923945,4.15809556,3117.8,3117.4,0.002]
[1767901924124,0.95069516,3117.7,3117.4,0.002]
[1767901924521,2.05675013,3118.1,3117.4,0.002]
[1767901924722,0.95069516,3118.0,3117.4,0.002]
[1767901925560,0.001,3117.5,3117.4,0.002]
[1767901927656,0.95069516,3118.1,3117.4,0.002]
[1767901928457,4.1576207,3118.3,3117.4,0.92007528]
[1767901928659,3.20692554,3118.3,3117.6,0.91807528]
[1767901929352,4.1576207,3118.3,3117.6,0.91807528]
[1767901929658,7.36454624,3118.3,3117.6,1.76007528]
[1767901929826,3.20682132,3118.4,3117.7,0.91807528]
[1767901930027,7.3643378,3118.4,3117.7,0.91807528]
[1767901930239,7.3643378,3118.4,3117.6,0.842]
[1767901930552,0.95069516,3118.3,3117.6,0.842]
[1767901930732,3.20697838,3118.2,3117.6,0.842]
[1767901931130,0.95069516,3118.1,3117.6,0.842]
[1767901931323,0.95069516,3118.3,3117.6,1.77323986]
[1767901931524,4.1576231,3118.3,3117.6,0.842]
[1767901932057,7.04127848,3118.3,3117.6,0.842]
[1767901932348,0.90701365,3118.0,3117.6,0.842]
[1767901932558,0.90701365,3118.0,3117.4,0.844]
[1767901933452,4.11421318,3118.0,3117.4,0.844]
[1767901935544,0.90701365,3118.0,3117.4,0.844]
[1767901937059,4.11421022,3118.0,3117.4,0.844]
[1767901938749,0.001,3117.7,3117.4,0.844]
[1767901939060,0.001,3117.7,3117.4,1.34230767]
[1767901939460,0.001,3117.7,3117.4,4.55008306]
[1767901939751,0.001,3117.7,3117.4,5.48132292]
[1767901940637,0.001,3117.7,3117.5,0.93123986]
[1767901940846,3.20676009,3118.5,3117.7,0.93123986]
[1767901940847,3.20675182,3118.5,3117.7,0.93123986]
[1767901941161,3.20675182,3118.5,3117.6,6.09125096]
[1767901941162,4.11376547,3118.5,3117.8,0.93123986]
[1767901941459,0.90701365,3118.4,3117.6,0.93123986]
[1767901944161,3.20687554,3118.3,3117.6,0.93123986]
[1767901945257,0.90701365,3118.0,3117.4,0.844]
[1767901945559,0.90701365,3118.0,3117.5,0.842]
[1767901946854,4.11420419,3118.0,3117.5,0.842]
[1767901947768,0.90701365,3118.2,3117.5,4.04968401]
[1767901948652,4.11401025,3118.2,3117.5,4.04968401]
[1767901950272,3.20641963,3118.8,3117.7,0.93123986]
[1767901950273,0.90701365,3118.7,3117.7,0.93123986]
[1767901950571,0.90701365,3118.6,3117.7,0.93123986]
[1767901951270,0.001,3118.1,3117.8,3.81489524]
[1767901951443,0.001,3118.1,3117.8,0.93123986]
[1767901952672,0.001,3118.1,3117.8,1.31272938]
[1767901956057,0.001,3118.1,3117.8,4.52009999]
[1767901960173,0.001,3118.1,3117.8,0.38148952]
[1767901960375,0.001,3118.1,3117.4,0.002]
[1767901960376,0.90765417,3117.8,3117.4,0.002]
[1767901960670,0.90765417,3117.8,3117.0,0.002]
[1767901960671,2.88365538,3117.6,3117.0,0.94504513]
[1767901961175,0.001,3118.1,3117.0,0.94504513]
[1767901961176,0.90765417,3117.9,3117.0,0.94504513]
[1767901961470,0.90765417,3117.8,3117.1,0.94304513]
[1767901961674,0.73222281,3117.7,3117.1,0.94304513]
[1767901962679,0.90765417,3117.1,3116.2,0.94504513]
[1767901962857,0.90765417,3117.1,3116.3,0.94304513]
[1767901963378,0.90765417,3117.4,3116.5,0.94504513]
[1767901964858,0.90765417,3117.4,3117.0,0.002]
[1767901965382,6.41519116,3117.6,3116.5,0.002]
[1767901965383,0.90765417,3117.0,3116.5,0.002]
[1767901965563,2.88375207,3117.1,3116.2,0.002]
[1767901965762,0.90765417,3117.0,3116.2,0.002]
[1767901967157,0.90765417,3116.8,3116.2,0.002]
[1767901968984,0.90765417,3116.3,3115.9,0.002]
[1767901970274,4.11664455,3116.3,3115.9,0.002]
[1767901970486,0.90765417,3116.2,3115.9,0.002]
[1767901975559,3.20865248,3116.6,3115.9,0.002]
[1767901975754,0.90765417,3116.5,3115.9,0.002]
[1767901976497,0.90765417,3116.1,3115.4,0.002]
[1767901976674,1.28679479,3116.0,3115.4,0.002]
[1767901976857,0.90765417,3116.0,3115.4,0.002]
[1767901977681,0.90765417,3116.0,3115.5,0.842]
[1767901977876,0.90765417,3116.0,3115.4,0.002]
[1767901978655,0.90765417,3115.8,3115.4,0.002]
[1767901980557,0.90765417,3115.6,3115.4,0.002]
[1767901980763,0.90765417,3115.5,3115.1,0.002]
[1767901981964,3.20935765,3115.9,3115.1,0.002]